bitfinex-derivatives/quotes_ETHF0:USTF0_20250106
["timestamp","ask_amount","ask_price","bid_price","bid_amount"]
[1736136630576,0.24546,3667.5,3667.4,3.2078]
[1736136630875,0.67306,3667.5,3667.4,3.2078]
[1736136634280,0.24548,3667.1,3667.0,3.2078]
[1736136634776,0.24548,3667.1,3667.0,44.0078]
[1736136635180,0.24548,3667.1,3667.0,3.2078]
[1736136635870,0.24548,3667.2,3667.0,3.2078]
[1736136636066,0.4353,3667.4,3667.0,3.2078]
[1736136636274,7.49718678,3669.3,3667.5,0.61364]
[1736136636576,0.4448,3668.9,3668.8,0.24537]
[1736136637267,0.4448,3668.9,3668.8,3.45317]
[1736136637670,0.24532,3669.6,3669.2,0.24534]
[1736136637870,0.4241,3669.4,3669.1,0.24535]
[1736136638070,0.4282,3669.7,3668.8,5.38564871]
[1736136638271,0.4282,3669.7,3669.4,3.2078]
[1736136638473,0.4282,3669.7,3669.6,0.24531]
[1736136638880,0.4282,3669.7,3669.5,0.24532]
[1736136639581,0.4282,3669.7,3669.4,5.63097871]
[1736136640075,0.4282,3669.7,3669.5,0.24532]
[1736136640883,0.4282,3669.7,3669.4,5.63097871]
[1736136641581,0.67351,3669.7,3669.4,3.2078]
[1736136641784,0.4282,3669.7,3669.4,3.2078]
[1736136643283,0.67351,3669.7,3669.4,3.2078]
[1736136643684,0.4282,3669.7,3669.4,3.45312]
[1736136643885,0.4282,3669.7,3669.4,3.2078]
[1736136644081,0.4241,3669.8,3669.4,5.38564871]
[1736136644385,0.4241,3669.8,3669.7,0.24531]
[1736136644582,0.4241,3669.8,3669.4,5.38564871]
[1736136644583,0.4241,3669.8,3669.6,0.24531]
[1736136644984,0.4241,3669.8,3669.5,0.24532]
[1736136645984,0.4241,3669.8,3669.6,0.24531]
[1736136646786,0.4241,3669.8,3669.4,5.38564871]
[1736136647086,0.24531,3669.7,3669.4,3.2078]
[1736136647287,0.24532,3669.5,3669.4,3.2078]
[1736136648178,0.24535,3669.2,3669.0,3.2078]
[1736136648382,0.24533,3669.4,3669.0,3.45315]
[1736136648582,0.24531,3669.7,3669.0,3.2078]
[1736136648774,0.24533,3669.4,3669.0,3.2078]
[1736136649180,1.4951,3669.8,3669.0,3.2078]
[1736136649382,0.24531,3669.7,3669.1,0.24535]
[1736136649581,0.24532,3669.6,3669.4,3.2078]
[1736136650484,0.24531,3669.7,3669.4,3.2078]
[1736136650683,0.24532,3669.6,3669.4,3.2078]
[1736136651084,3.67294871,3669.8,3669.0,3.2078]
[1736136651282,0.24534,3669.3,3669.0,3.2078]
[1736136651781,0.4072,3669.4,3669.0,3.2078]
[1736136651988,0.24535,3669.1,3669.0,3.2078]
[1736136652483,0.24533,3669.3,3669.0,3.2078]
[1736136652991,0.4341,3669.5,3669.0,3.2078]
[1736136653385,0.4241,3669.8,3669.4,3.45313]
[1736136653591,0.4241,3669.8,3669.4,3.45312]
[1736136653890,0.24532,3669.6,3669.4,3.2078]
[1736136654088,0.66941,3669.8,3669.4,3.2078]
[1736136654294,0.24531,3669.7,3669.4,3.2078]
[1736136654689,0.24532,3669.6,3669.4,3.2078]
[1736136655788,0.4467,3669.5,3669.4,3.2078]
[1736136656793,0.69202,3669.5,3669.4,3.2078]
[1736136656996,0.69202,3669.5,3668.9,0.4368]
[1736136656997,0.24533,3669.4,3669.0,3.2078]
[1736136657189,0.4467,3669.5,3669.0,3.2078]
[1736136657995,0.24535,3669.1,3669.0,3.2078]
[1736136659197,0.4467,3669.5,3669.0,3.2078]
[1736136659396,0.24535,3669.1,3669.0,3.2078]
[1736136661095,1.11305,3669.1,3669.0,3.2078]
[1736136661890,0.4237,3669.1,3669.0,3.2078]
[1736136662397,0.8744,3669.5,3669.0,3.2078]
[1736136662608,0.4259,3669.5,3669.4,3.45313]
[1736136662798,0.2453,3669.9,3669.4,5.63097871]
[1736136663108,0.24531,3669.7,3669.4,5.38564871]
[1736136663299,0.24531,3669.7,3669.5,40.8]
[1736136663605,0.2453,3669.8,3669.5,40.8]
[1736136664009,0.24531,3669.7,3669.5,40.8]
[1736136664507,0.4259,3669.9,3669.5,40.8]
[1736136664807,0.24531,3669.6,3669.5,40.8]
[1736136665101,2.17784871,3669.8,3669.0,7.46494202]
[1736136665405,0.24535,3669.1,3669.0,7.46494202]
[1736136665597,0.24535,3669.2,3669.0,7.46494202]
[1736136665800,0.8677,3669.5,3669.0,7.46494202]
[1736136665998,0.24534,3669.3,3669.0,3.2078]
[1736136666405,0.24533,3669.4,3669.0,3.45315]
[1736136666608,0.66753,3669.5,3669.1,0.24534]
[1736136666805,0.66753,3669.5,3669.4,3.2078]
[1736136667110,0.24532,3669.6,3669.4,3.2078]
[1736136667909,0.24531,3669.7,3669.4,3.2078]
[1736136668110,0.8714,3669.9,3669.4,3.2078]
[1736136668408,0.24532,3669.6,3669.4,3.2078]
[1736136668608,0.8714,3669.9,3669.4,3.2078]
[1736136668810,0.24532,3669.5,3669.4,3.2078]
[1736136670803,0.8714,3669.9,3669.4,3.2078]
[1736136671009,0.24531,3669.7,3669.4,3.2078]
[1736136671208,0.8714,3669.9,3669.4,3.2078]
[1736136671408,0.24532,3669.6,3669.5,0.4311]
[1736136671603,0.24531,3669.7,3669.5,0.4311]
[1736136672703,5.99880871,3670.4,3669.5,0.4311]
[1736136672903,0.24531,3669.8,3669.5,0.4311]
[1736136673801,0.24527,3670.3,3669.5,0.4311]
[1736136674111,0.24531,3669.7,3669.5,0.4311]
[1736136674413,5.99880871,3670.4,3669.5,0.4311]
[1736136674613,0.24531,3669.8,3669.5,0.4311]
[1736136674911,6.45664871,3670.4,3669.5,0.67642]
[1736136675108,0.2453,3669.8,3669.5,0.67642]
[1736136675308,0.2453,3669.8,3669.5,0.4311]
[1736136675502,0.24531,3669.7,3669.5,0.4311]
[1736136676108,0.24531,3669.6,3669.5,0.4311]
[1736136676812,0.24531,3669.6,3669.4,3.2078]
[1736136677010,0.66842,3669.5,3669.4,3.2078]
[1736136682607,0.66842,3669.5,3669.4,7.46494202]
[1736136684216,0.4231,3669.5,3669.4,7.38902788]
[1736136684511,0.66842,3669.5,3669.4,7.38902788]
[1736136684908,3.2078,3670.0,3669.4,7.38902788]
[1736136685117,3.46413597,3670.1,3669.8,3.2078]
[1736136685517,3.46413597,3670.1,3669.9,40.8]
[1736136685518,3.21884597,3670.1,3669.9,40.8]
[1736136685811,3.21884597,3670.1,3670.0,0.24529]
[1736136686017,3.21884597,3670.1,3670.0,2.42313871]
[1736136686413,3.21884597,3670.1,3670.0,43.22313871]
[1736136687514,0.24524,3670.7,3670.4,0.24526]
[1736136687714,0.24525,3670.6,3670.5,3.2078]
[1736136688020,0.4458,3670.9,3670.5,3.2078]
[1736136688214,0.24523,3670.8,3670.5,3.2078]
[1736136688408,0.24522,3671.0,3670.7,0.24524]
[1736136688619,3.21884597,3671.2,3671.1,0.24521]
[1736136688819,3.21884597,3671.2,3670.9,5.38564871]
[1736136688820,3.21884597,3671.5,3670.9,5.38564871]
[1736136689015,3.21884597,3671.5,3671.4,3.2078]
[1736136690913,0.24518,3671.6,3671.4,13.80061451]
[1736136691917,0.24518,3671.7,3671.4,13.80061451]
[1736136692418,0.24518,3671.7,3671.4,7.46703029]
[1736136693220,0.4242,3672.0,3671.4,7.46703029]
[1736136693422,0.24517,3671.8,3671.4,7.46703029]
[1736136693922,0.24517,3671.8,3671.4,3.2078]
[1736136694124,0.24517,3671.7,3671.4,3.2078]
[1736136695920,0.24517,3671.7,3671.2,6.437079]
[1736136695921,2.17784871,3671.5,3671.2,4.25923029]
[1736136696120,0.2452,3671.3,3671.2,4.25923029]
[1736136696922,2.17784871,3671.5,3671.2,4.25923029]
[1736136697125,0.2452,3671.4,3671.2,4.25923029]
[1736136697326,3.2078,3671.6,3671.2,4.25923029]
[1736136697528,0.24519,3671.5,3671.2,4.25923029]
[1736136697721,3.2078,3671.6,3671.2,4.25923029]
[1736136697927,0.24519,3671.5,3671.2,4.25923029]
[1736136698127,0.2452,3671.3,3671.2,4.25923029]
[1736136700223,0.8511,3671.5,3671.2,4.25923029]
[1736136700224,1.09629,3671.5,3671.2,4.25923029]
[1736136701134,3.27413871,3671.5,3671.2,4.25923029]
[1736136701825,0.6954,3671.4,3671.2,4.25923029]
[1736136702424,0.6954,3671.4,3671.2,3.58353029]
[1736136702730,0.2452,3671.3,3671.2,3.58353029]
[1736136702927,0.24521,3671.1,3671.0,6.41158663]
[1736136703126,5.63085871,3671.1,3671.0,6.41158663]
[1736136703328,5.38564871,3671.1,3670.3,3.2078]
[1736136703528,0.24523,3670.9,3670.3,3.2078]
[1736136704129,5.38564871,3671.1,3670.3,3.2078]
[1736136704430,0.24524,3670.7,3670.3,3.2078]
[1736136705226,0.24524,3670.8,3670.3,3.2078]
[1736136705926,6.45664871,3671.1,3670.3,3.2078]
[1736136706429,6.45664871,3671.1,3670.3,3.45307]
[1736136706430,0.24523,3670.9,3670.3,3.45307]
[1736136706831,5.38564871,3671.1,3670.3,3.2078]
[1736136707033,5.63086871,3671.1,3670.4,0.24526]
[1736136707232,5.38564871,3671.1,3670.4,0.24526]
[1736136707432,0.24522,3671.0,3670.4,0.24526]
[1736136707731,0.24523,3670.9,3670.3,3.2078]
[1736136707923,5.38564871,3671.1,3670.3,3.2078]
[1736136708129,2.17784871,3670.8,3670.3,3.2078]
[1736136708329,1.10565,3670.7,3670.3,3.2078]
[1736136708731,0.8604,3670.7,3670.3,3.2078]
[1736136708932,0.24526,3670.5,3670.3,3.2078]
[1736136709730,0.24526,3670.4,3670.3,3.2078]
[1736136709931,3.2078,3670.5,3670.1,0.8419]
[1736136710129,0.24526,3670.4,3670.1,0.4166]
[1736136710833,5.38564871,3670.5,3670.1,0.4166]
[1736136711030,2.42311871,3670.2,3669.8,0.4489]
[1736136711334,2.17784871,3670.2,3669.8,0.4489]
[1736136711536,2.42312871,3670.2,3669.8,0.4489]
[1736136711923,2.17784871,3670.2,3669.8,0.4489]
[1736136712127,0.24526,3670.4,3669.9,0.24529]
[1736136712936,5.63090871,3670.5,3669.9,0.24529]
[1736136713234,1.1071,3670.7,3669.8,0.4489]
[1736136713235,0.8604,3670.7,3669.8,0.4489]
[1736136713435,0.8604,3670.7,3670.0,0.24529]
[1736136713436,0.24526,3670.5,3670.0,0.24529]
[1736136713637,0.8604,3670.7,3669.8,0.4489]
[1736136714228,0.24527,3670.4,3669.9,0.24529]
[1736136715933,0.24527,3670.4,3669.8,0.4489]
[1736136716134,0.24527,3670.4,3670.0,0.24529]
[1736136716325,3.2078,3670.5,3669.8,0.4489]
[1736136716528,3.45306,3670.5,3669.8,0.4489]
[1736136716728,3.2078,3670.5,3669.8,0.4489]
[1736136716929,3.2078,3670.5,3670.2,0.24527]
[1736136717133,3.2078,3670.5,3670.3,0.4383]
[1736136717525,2.17784871,3670.8,3670.3,0.4383]
[1736136717727,0.24526,3670.5,3670.3,0.4383]
[1736136718331,2.17784871,3670.8,3670.3,0.4383]
[1736136718332,0.24525,3670.6,3670.3,0.4383]
[1736136719133,2.17784871,3670.8,3670.3,0.4383]
[1736136719439,0.24526,3670.5,3670.3,0.4383]
[1736136719635,0.24526,3670.4,3670.3,0.4383]
[1736136725338,2.17784871,3670.8,3670.3,0.4383]
[1736136725538,0.24525,3670.6,3670.3,0.4383]
[1736136725841,0.24526,3670.5,3670.3,0.4383]
[1736136726343,0.24526,3670.4,3670.3,0.4383]
[1736136727136,2.17784871,3670.8,3670.3,0.4383]
[1736136727332,0.24526,3670.5,3670.3,0.4383]
[1736136729246,3.2078,3670.9,3670.3,0.68356]
[1736136729247,0.24524,3670.8,3670.3,0.68356]
[1736136729546,0.24525,3670.7,3670.3,0.4383]
[1736136729943,3.2078,3670.9,3670.3,0.4383]
[1736136730143,0.24525,3670.6,3670.3,0.4383]
[1736136730940,3.2078,3670.9,3670.3,0.4383]
[1736136731145,0.24526,3670.4,3670.3,0.4383]
[1736136731536,3.2078,3670.9,3670.3,0.4383]
[1736136731739,0.24526,3670.5,3670.3,0.4383]
[1736136731934,0.24526,3670.4,3670.3,0.4383]
[1736136732641,0.24526,3670.5,3670.3,0.4383]
[1736136733047,3.2078,3670.9,3670.3,0.4383]
[1736136733250,0.24524,3670.8,3670.3,0.68356]
[1736136733445,0.24523,3670.8,3670.3,0.68356]
[1736136733652,3.45303,3670.9,3670.4,0.24526]
[1736136733844,3.2078,3670.9,3670.5,0.8553]
[1736136734150,3.2078,3670.9,3670.5,1.10055]
[1736136734548,3.45303,3670.9,3670.5,1.10055]
[1736136735047,3.45303,3670.9,3670.5,0.8553]
[1736136735250,0.24523,3670.8,3670.5,0.8553]
[1736136735945,3.2078,3670.9,3670.5,0.8553]
[1736136736152,3.2078,3670.9,3670.6,0.24524]
[1736136736450,3.2078,3670.9,3670.5,0.8553]
[1736136736650,3.2078,3670.9,3670.6,0.24524]
[1736136736846,3.2078,3670.9,3670.7,40.8]
[1736136737048,3.2078,3670.9,3670.5,0.8553]
[1736136737353,0.24525,3670.6,3670.5,0.449]
[1736136738047,0.24525,3670.6,3670.5,6.86058663]
[1736136739446,0.24525,3670.6,3670.5,11.06117016]
[1736136742149,0.24525,3670.6,3670.5,4.64958353]
[1736136744962,0.45,3670.8,3670.5,4.64958353]
[1736136745256,0.24525,3670.6,3670.5,4.64958353]
[1736136745657,0.24525,3670.6,3670.5,45.44958353]
[1736136747352,0.24525,3670.6,3670.5,4.64958353]
[1736136747554,0.24525,3670.6,3670.5,4.20058353]
[1736136749454,0.45,3670.8,3670.5,4.20058353]
[1736136749648,0.24524,3670.8,3670.5,4.20058353]
[1736136750253,5.3386122,3670.9,3670.5,4.20058353]
[1736136750453,0.24524,3670.7,3670.5,4.20058353]
[1736136751161,5.3386122,3670.9,3670.6,10.61586724]
[1736136751356,0.24524,3670.7,3670.6,10.61586724]
[1736136757861,0.24524,3670.7,3670.6,4.20058353]
[1736136761866,0.24524,3670.7,3670.6,4.62648353]
[1736136767057,0.24524,3670.7,3670.6,4.20058353]
[1736136768958,3.46408597,3670.7,3670.6,4.20058353]
[1736136770166,0.24525,3670.5,3670.4,6.42640684]
[1736136771368,2.38925518,3670.5,3670.4,10.64584982]
[1736136775067,3.36967761,3670.5,3670.4,10.64584982]
[1736136777169,4.44067761,3670.5,3670.4,10.10245251]
[1736136778074,3.87995518,3670.5,3670.4,10.10245251]
[1736136778268,4.86037761,3670.5,3670.4,10.10245251]
[1736136778675,0.24529,3670.0,3669.9,0.429]
[1736136778868,3.2078,3670.2,3669.9,0.429]
[1736136779069,0.82866295,3670.5,3670.0,0.98042243]
[1736136779070,0.40896295,3670.5,3670.0,0.98042243]
[1736136779271,0.40896295,3670.5,3670.2,0.98042243]
[1736136779575,0.24527,3670.4,3670.3,0.4137]
[1736136779771,2.38822069,3670.4,3670.3,0.4137]
[1736136780172,1.66193131,3671.0,3670.9,0.24523]
[1736136780369,4.95038565,3671.5,3670.9,5.41387486]
[1736136780572,9.63005575,3672.1,3671.4,45.96864486]
[1736136780777,9.63005575,3672.1,3671.6,2.20602486]
[1736136780977,9.63005575,3672.1,3671.6,1.22560243]
[1736136781575,4.18822243,3672.7,3671.6,0.98042243]
[1736136781774,4.18822243,3672.7,3671.4,44.0078]
[1736136781775,0.24513,3672.4,3672.3,0.98042243]
[1736136782682,0.24513,3672.5,3672.3,0.98042243]
[1736136782980,0.24513,3672.5,3672.3,12.73815743]
[1736136783174,0.24511,3672.6,3672.3,12.73815743]
[1736136783376,0.24513,3672.5,3672.3,12.73815743]
[1736136783676,3.2078,3672.7,3672.3,12.73815743]
[1736136783976,0.24512,3672.6,3672.4,4.20426542]
[1736136784274,3.2078,3672.7,3672.4,4.20426542]
[1736136784475,3.45291,3672.7,3672.4,4.20426542]
[1736136784867,3.45291,3672.7,3672.5,4.20426542]
[1736136785169,3.8982,3673.1,3672.5,4.20426542]
[1736136785370,0.4438,3673.1,3673.0,2.16987335]
[1736136785671,0.4438,3673.1,3672.8,3.2078]
[1736136786065,0.4438,3673.1,3672.8,3.4529]
[1736136786264,0.4438,3673.1,3672.8,3.2078]
[1736136786777,0.4438,3673.1,3672.9,40.8]
[1736136787278,3.2078,3673.6,3672.9,40.8]
[1736136787279,0.24506,3673.5,3672.9,40.8]
[1736136787473,0.69386,3673.5,3672.9,45.00426542]
[1736136787873,0.00381812,3673.0,3672.9,4.20426542]
[1736136788677,0.00381812,3673.0,3672.9,4.44935542]
[1736136789078,0.4488,3673.5,3672.9,4.20426542]
[1736136789279,0.4488,3673.5,3673.0,2.41496335]
[1736136789670,0.4488,3673.5,3673.1,0.24508]
[1736136791680,0.4488,3673.5,3673.0,2.16987335]
[1736136791876,0.4488,3673.5,3673.2,0.24507]
[1736136792077,3.2078,3673.6,3673.3,2.16987335]
[1736136792380,3.2078,3673.6,3673.3,2.41494335]
[1736136792576,3.2078,3673.6,3673.4,0.24506]
[1736136792881,3.2078,3673.6,3673.3,2.41494335]
[1736136793386,3.2078,3673.6,3673.4,0.24506]
[1736136793771,3.2078,3673.6,3673.3,2.16987335]
[1736136794883,0.24505,3673.6,3673.3,2.16987335]
[1736136795685,0.24505,3673.5,3673.3,2.16987335]
[1736136796085,0.24506,3673.4,3673.3,2.16987335]
[1736136796280,0.24507,3673.3,3673.2,3.2078]
[1736136796580,3.2078,3673.7,3672.9,2.16987335]
[1736136796781,0.24509,3673.0,3672.9,2.16987335]
[1736136797880,3.2078,3673.7,3672.9,2.16987335]
[1736136798081,0.24505,3673.6,3673.5,2.16987335]
[1736136800388,0.24505,3673.7,3673.5,2.16987335]
[1736136800580,0.24505,3673.6,3673.5,2.16987335]
[1736136800977,0.24505,3673.6,3673.5,42.96987335]
[1736136801581,0.61254,3674.2,3673.5,42.96987335]
[1736136801788,0.61254,3674.2,3673.8,2.16987335]
[1736136802084,0.24503,3673.9,3673.8,2.16987335]
[1736136811301,0.24505,3673.6,3673.5,42.96987335]
[1736136811497,0.24505,3673.6,3673.5,40.8]
[1736136816901,0.24508,3673.1,3673.0,2.16987335]
[1736136817398,0.24508,3673.1,3673.0,42.96987335]
[1736136817598,0.24508,3673.1,3673.0,40.8]
[1736136817802,0.24508,3673.1,3673.0,42.96987335]
[1736136818605,0.24508,3673.1,3673.0,40.8]
[1736136819606,0.2451,3672.8,3672.7,2.16987335]
[1736136820005,0.4349,3673.0,3672.7,42.96987335]
[1736136820605,0.2451,3672.8,3672.7,42.96987335]
[1736136824914,0.2451,3672.8,3672.7,48.05914767]
[1736136826513,0.2451,3672.8,3672.7,56.10016802]
[1736136826813,0.2451,3672.8,3672.7,58.27004137]
[1736136827811,0.4349,3673.0,3672.7,68.92955348]
[1736136828011,0.2451,3672.8,3672.7,68.92955348]
[1736136828220,0.2451,3672.8,3672.7,58.27004137]
[1736136828514,0.2451,3672.8,3672.7,56.10016802]
[1736136829813,3.82047,3673.4,3672.7,56.10016802]
[1736136829814,3.2078,3673.4,3672.7,56.10016802]
[1736136830516,3.2078,3673.4,3672.9,2.16987335]
[1736136830917,0.24509,3673.1,3672.9,2.16987335]
[1736136831114,3.2078,3673.4,3672.9,2.16987335]
[1736136831318,0.8586,3673.5,3673.2,2.16987335]
[1736136831518,0.8586,3673.5,3673.2,2.41494335]
[1736136831821,0.8586,3673.5,3673.3,40.8]
[1736136833019,1.51566,3673.5,3673.3,40.8]
[1736136833519,1.51566,3673.5,3673.4,15.30016802]
[1736136833722,3.45278,3674.7,3674.1,0.24501]
[1736136834015,0.4109,3674.4,3674.3,2.16987335]
[1736136834913,0.4109,3674.4,3674.3,12.83540919]
[1736136836516,0.4109,3674.4,3674.3,17.47004137]
[1736136837614,0.65589,3674.4,3674.3,15.30016802]
[1736136837815,0.65589,3674.4,3674.3,25.96570386]
[1736136839322,0.65589,3674.4,3674.3,11.48257801]
[1736136839915,5.65589,3674.4,3674.3,11.48257801]
[1736136840117,6.73289,3674.4,3674.3,11.48257801]
[1736136840420,6.73289,3674.4,3673.9,10.66553584]
[1736136840421,0.24501,3674.1,3674.0,4.26348215]
[1736136840624,3.45281,3674.1,3674.0,4.26348215]
[1736136841019,3.45281,3674.1,3674.0,3.58818215]
[1736136841615,3.45281,3674.1,3673.5,12.83540919]
[1736136841616,0.24503,3673.9,3673.8,6.39330369]
[1736136842925,0.24503,3673.8,3673.7,6.39330369]
[1736136844126,0.24503,3673.8,3673.7,5.06896316]
[1736136845428,0.24504,3673.7,3673.6,6.39330369]
[1736136845633,0.67994,3673.7,3673.6,6.39330369]
[1736136846521,3.88774,3673.7,3673.6,6.39330369]
[1736136847023,0.24505,3673.5,3673.4,6.39330369]
[1736136848327,4.7197,3673.7,3673.1,6.39330369]
[1736136848528,0.24507,3673.2,3673.1,6.39330369]
[1736136849532,0.24507,3673.2,3673.1,5.07045325]
[1736136851830,0.24507,3673.2,3673.1,11.46920725]
[1736136857536,0.8451,3673.3,3673.1,11.46920725]
[1736136857941,3.2078,3673.4,3673.1,11.71428725]
[1736136858235,3.2078,3673.4,3673.2,0.41]
[1736136858439,3.2078,3673.4,3673.2,46.28045325]
[1736136858634,3.2078,3673.4,3673.2,5.48045325]
[1736136859140,3.2078,3673.4,3673.2,46.28045325]
[1736136859539,3.2078,3673.4,3673.2,5.48045325]
[1736136859728,3.2078,3673.4,3673.3,5.07045325]
[1736136860039,3.45286,3673.4,3673.3,5.07045325]
[1736136860236,0.24506,3673.4,3673.3,5.07045325]
[1736136862334,3.45286,3673.4,3673.3,5.07045325]
[1736136863340,0.24507,3673.2,3673.1,6.40045953]
[1736136864141,0.418,3673.2,3673.1,5.07161149]
[1736136864328,0.66307,3673.2,3673.1,5.07161149]
[1736136867739,0.66307,3673.2,3673.1,11.47134105]
[1736136876745,3.6218,3673.3,3673.1,5.07161149]
[1736136876945,0.24507,3673.2,3673.1,5.07161149]
[1736136879045,0.24507,3673.2,3673.1,11.47216579]
[1736136879957,0.67187,3673.2,3673.1,11.47216579]
[1736136884459,0.67187,3673.2,3673.1,5.07161149]
[1736136887458,0.67187,3673.2,3673.1,13.59601641]
[1736136891259,0.67187,3673.2,3673.1,15.20898364]
[1736136892752,0.67187,3673.2,3673.1,5.07161149]
[1736136892959,1.65095105,3673.2,3673.1,5.07161149]
[1736136893160,0.67187,3673.2,3673.1,5.07161149]
[1736136894056,1.74187,3673.2,3673.1,5.07161149]
[1736136895362,1.74187,3673.2,3673.1,13.63022617]
[1736136895751,1.74187,3673.2,3673.1,14.60930722]
[1736136895962,1.31507,3673.2,3673.1,14.60930722]
[1736136896463,1.31507,3673.2,3673.1,16.18938813]
[1736136896658,1.31507,3673.2,3673.1,15.21030708]
[1736136897468,0.24507,3673.2,3673.1,15.21030708]
[1736136899168,3.45287,3673.3,3673.1,15.21030708]
[1736136899362,3.45287,3673.3,3673.2,0.97908105]
[1736136899363,3.2078,3673.3,3673.2,0.97908105]
[1736136899566,3.2078,3673.3,3673.2,1.83908105]
[1736136900066,3.2078,3673.3,3673.2,27.71492397]
[1736136900456,3.2078,3673.3,3673.2,27.30432397]
[1736136900657,3.45287,3673.3,3673.2,27.30432397]
[1736136900859,3.45287,3673.3,3673.2,25.87584292]
[1736136901370,3.87747,3673.3,3673.2,15.21030708]
[1736136902461,3.2078,3673.3,3673.2,5.07161149]
[1736136902865,3.2078,3673.3,3673.2,5.49751149]
[1736136903268,3.45287,3673.3,3673.2,5.49751149]
[1736136903469,3.2078,3673.3,3673.2,5.49751149]
[1736136903666,3.45287,3673.3,3673.2,5.49751149]
[1736136903971,3.2078,3673.3,3673.2,21.71169237]
[1736136904762,3.45287,3673.3,3673.2,21.71169237]
[1736136904962,3.45287,3673.3,3673.2,15.63227119]
[1736136905164,3.2078,3673.7,3673.2,15.63227119]
[1736136905370,0.24505,3673.6,3673.4,2.1692433]
[1736136905563,0.24505,3673.5,3673.4,2.1692433]
[1736136905871,3.2078,3673.7,3673.3,15.62467119]
[1736136905872,0.24506,3673.4,3673.3,15.62467119]
[1736136906067,0.24506,3673.4,3673.3,15.20637119]
[1736136907871,0.24506,3673.4,3673.3,23.76379224]
[1736136910370,0.24506,3673.4,3673.3,13.62903254]
[1736136910970,5.24506,3673.4,3673.3,11.55503255]
[1736136911170,5.24506,3673.4,3673.3,10.93146675]
[1736136911375,0.24506,3673.4,3673.3,10.93146675]
[1736136911965,3.20399273,3673.4,3673.0,6.42204173]
[1736136912278,5.3770433,3673.1,3673.0,6.42204173]
[1736136912473,5.6221233,3673.1,3673.0,6.42204173]
[1736136913274,5.6221233,3673.1,3672.9,1.12918443]
[1736136913275,0.24509,3673.0,3672.9,1.12918443]
[1736136913574,2.4143333,3673.0,3672.9,1.12918443]
[1736136913962,2.4143333,3673.0,3672.7,6.59062833]
[1736136913963,0.2451,3672.8,3672.7,6.59062833]
[1736136914375,5.2451,3672.8,3672.7,6.59062833]
[1736136914781,0.24515,3672.1,3672.0,6.59062833]
[1736136914970,3.45295,3672.1,3672.0,6.59062833]
[1736136915777,0.24515,3672.0,3671.9,0.8755]
[1736136917178,3.2078,3672.1,3671.9,0.8755]
[1736136917879,2.38578903,3672.6,3672.0,0.24515]
[1736136918177,2.14066903,3672.6,3672.0,0.24515]
[1736136918476,2.14066903,3672.6,3671.9,0.8755]
[1736136918477,5.59356903,3672.8,3672.2,0.24514]
[1736136918778,0.24511,3672.7,3672.1,41.04515]
[1736136919581,5.59356903,3672.8,3672.2,0.24514]
[1736136919769,0.24511,3672.7,3672.2,9.5750299]
[1736136920579,3.2078,3672.8,3672.2,9.5750299]
[1736136920778,0.24512,3672.6,3672.2,9.5750299]
[1736136920981,0.24512,3672.6,3672.3,9.5750299]
[1736136921186,0.24512,3672.6,3672.4,0.4359]
[1736136921478,0.24512,3672.5,3672.4,0.8532]
[1736136922275,0.24515,3672.1,3672.0,11.13267632]
[1736136922475,3.45295,3672.1,3672.0,11.13267632]
[1736136922676,3.2078,3672.1,3672.0,11.13267632]
[1736136923077,0.24514,3672.2,3672.0,11.13267632]
[1736136923482,3.2078,3672.5,3672.0,11.13267632]
[1736136923682,0.24513,3672.4,3672.0,0.4359]
[1736136923878,3.2078,3672.5,3672.0,0.4359]
[1736136924180,3.2078,3672.5,3672.1,0.65365]
[1736136924373,3.45292,3672.5,3672.1,0.4085]
[1736136925079,0.24513,3672.4,3672.1,0.4085]
[1736136925283,3.2078,3672.5,3672.1,0.4085]
[1736136925687,0.24514,3672.2,3672.1,0.4085]
[1736136931486,0.24514,3672.2,3672.1,5.19432138]
[1736136940595,0.24514,3672.2,3672.1,0.4085]
[1736136945297,0.24516,3671.9,3671.8,8.54227626]
[1736136947205,0.24516,3671.9,3671.8,4.78589058]
[1736136953701,0.24516,3671.9,3671.8,2.16839058]
[1736136953899,0.24516,3671.9,3671.8,7.75906606]
[1736136954102,0.24516,3671.9,3671.8,6.42968592]
[1736136955611,2.1692433,3672.1,3671.7,1.3117]
[1736136955612,0.24517,3671.8,3671.7,1.3117]
[1736136955805,3.45297,3671.8,3671.7,1.3117]
[1736136956307,5.6222133,3671.8,3671.7,0.8749]
[1736136956506,0.24519,3671.4,3671.3,0.8152]
[1736136957007,0.24519,3671.4,3671.3,1.2249]
[1736136960914,3.2078,3671.6,3670.9,10.69677632]
[1736136960915,0.24522,3671.0,3670.9,10.69677632]
[1736136961116,0.24522,3671.0,3670.9,11.58807632]
[1736136961617,0.24522,3671.0,3670.9,0.8913]
[1736136963114,0.24522,3671.0,3670.9,5.17000212]
[1736136964221,3.2078,3671.2,3670.9,0.8913]
[1736136964421,0.24521,3671.2,3670.9,0.8913]
[1736136964915,5.34846903,3671.6,3670.9,0.8913]
[1736136965221,0.24519,3671.5,3670.9,0.8913]
[1736136965523,0.2452,3671.4,3670.9,0.8913]
[1736136965714,0.24521,3671.3,3670.9,0.8913]
[1736136966216,0.24521,3671.2,3670.9,0.8913]
[1736136966513,3.2078,3671.6,3670.9,0.8913]
[1736136966716,0.24522,3671.0,3670.9,0.8913]
[1736136968506,5.3770433,3671.2,3670.6,0.4324]
[1736136968709,0.24523,3670.8,3670.7,0.8718]
[1736136969119,0.24523,3670.8,3670.7,5.147233]
[1736136971911,0.24523,3670.8,3670.7,0.8718]
[1736136972822,3.2078,3671.2,3670.7,0.8718]
[1736136973416,3.2078,3671.2,3670.7,5.147233]
[1736136973617,0.24523,3670.9,3670.7,5.147233]
[1736136974222,3.2078,3671.2,3670.7,5.147233]
[1736136974623,0.24523,3670.9,3670.7,5.147233]
[1736136975222,3.2078,3671.2,3670.7,5.147233]